bitfinex-derivatives/quotes_SOLF0:USTF0_20251024
["timestamp","ask_amount","ask_price","bid_price","bid_amount"]
[1761314591000,9.69822697,191.8,191.61,44.78]
[1761314591206,8.64926988,191.79,191.61,44.78]
[1761314591505,8.64926988,191.78,191.63,4.6959]
[1761314591808,3.94376064,191.77,191.63,4.6959]
[1761314591997,3.94376064,191.76,191.63,4.6959]
[1761314592198,3.94376064,191.75,191.63,4.6959]
[1761314592398,3.94376064,191.74,191.63,4.6959]
[1761314592701,4.70550924,191.79,191.62,62.0]
[1761314592906,3.95142831,191.78,191.62,62.0]
[1761314593107,4.6937,191.73,191.62,62.0]
[1761314593307,4.99271773,191.76,191.62,62.0]
[1761314593506,3.95667509,191.75,191.62,62.0]
[1761314593703,4.6936,191.73,191.62,62.0]
[1761314594106,3.95680328,191.72,191.62,62.0]
[1761314594301,3.96480284,191.71,191.63,4.6958]
[1761314594609,4.694,191.72,191.63,4.6958]
[1761314594795,3.96463001,191.71,191.63,4.6958]
[1761314595000,4.694,191.72,191.63,4.6958]
[1761314595204,3.96462777,191.71,191.63,4.6958]
[1761314595413,3.96462777,191.7,191.63,4.6958]
[1761314595603,3.96462777,191.69,191.62,62.0]
[1761314595801,4.70550924,191.73,191.62,62.0]
[1761314595802,3.97195869,191.68,191.62,62.0]
[1761314596004,4.70550924,191.73,191.62,62.0]
[1761314596208,3.97195669,191.72,191.62,62.0]
[1761314596402,4.6944,191.7,191.62,62.0]
[1761314596710,3.97195669,191.69,191.61,44.78]
[1761314596914,9.39920924,191.73,191.64,4.6956]
[1761314597111,3.94218717,191.72,191.64,4.6956]
[1761314597312,3.94218717,191.71,191.64,4.6956]
[1761314597509,3.94218717,191.7,191.64,4.6956]
[1761314597710,3.94218717,191.69,191.64,4.6956]
[1761314597910,3.94218717,191.68,191.64,4.6956]
[1761314598211,4.70550924,191.72,191.62,4.99271773]
[1761314598413,3.93700497,191.71,191.62,4.99271773]
[1761314598603,4.70550924,191.77,191.66,4.99271773]
[1761314598808,3.9441043,191.76,191.66,4.99271773]
[1761314599007,3.9441043,191.75,191.66,4.99271773]
[1761314599208,3.9441043,191.74,191.67,4.99271773]
[1761314599513,3.9441043,191.73,191.68,106.78]
[1761314599711,4.70550924,191.79,191.75,4.6928]
[1761314600014,3.95233191,191.78,191.75,4.6928]
[1761314600215,3.95233191,191.77,191.75,4.6928]
[1761314600422,4.99271773,191.9,191.77,4.6925]
[1761314600713,4.37762787,191.89,191.77,4.6925]
[1761314601013,4.6908,191.85,191.76,4.6926]
[1761314602314,9.0702571,191.87,191.77,4.6924]
[1761314602514,4.3800571,191.86,191.77,4.6924]
[1761314602713,4.6902,191.87,191.77,4.6924]
[1761314602912,4.38169744,191.86,191.77,4.6924]
[1761314603108,4.38126076,191.86,191.77,4.6924]
[1761314603312,4.99271773,191.9,191.77,4.6924]
[1761314603509,4.99271773,191.9,191.75,44.76]
[1761314603510,4.38355454,191.89,191.76,4.82319943]
[1761314603710,4.38355454,191.88,191.77,44.76]
[1761314603908,4.38355454,191.87,191.77,44.76]
[1761314604204,4.6906,191.85,191.75,49.4529]
[1761314604517,4.38355454,191.85,191.73,4.82319943]
[1761314604714,4.38355454,191.88,191.76,4.6926]
[1761314605015,4.38355454,191.87,191.76,4.6926]
[1761314605204,4.38355454,191.86,191.76,4.6926]
[1761314605407,4.38355454,191.88,191.76,4.6926]
[1761314605608,4.38355454,191.87,191.76,4.6926]
[1761314605802,4.38355454,191.86,191.76,4.6926]
[1761314606005,4.99271773,191.89,191.74,44.74]
[1761314606006,4.38355454,191.88,191.74,44.74]
[1761314606207,4.38355454,191.87,191.74,44.74]
[1761314606516,4.99271773,191.89,191.74,106.74]
[1761314606812,4.38311252,191.88,191.74,44.74]
[1761314607007,4.38311252,191.87,191.74,44.74]
[1761314607207,4.38311252,191.9,191.74,44.74]
[1761314607408,4.38311252,191.89,191.74,44.74]
[1761314607713,4.38311252,191.88,191.74,44.74]
[1761314607910,4.38311252,191.87,191.73,4.82319943]
[1761314608213,4.38311252,191.9,191.73,44.74]
[1761314608516,4.38311252,191.89,191.73,44.74]
[1761314608709,4.38311252,191.88,191.73,44.74]
[1761314609017,4.6913,191.83,191.74,4.6931]
[1761314609315,4.6913,191.83,191.73,44.74]
[1761314611218,4.6915,191.82,191.75,4.6929]
[1761314611512,13.8202552,191.9,191.73,4.6935]
[1761314611714,4.99271773,191.87,191.72,44.72]
[1761314612110,9.43387293,191.87,191.72,44.72]
[1761314612312,4.4411552,191.86,191.69,4.82319943]
[1761314612515,4.99271773,191.83,191.68,19.26]
[1761314612908,4.6931,191.75,191.66,4.82319943]
[1761314613113,8.59853747,191.82,191.65,49.54319943]
[1761314613313,4.99271773,191.79,191.65,49.54319943]
[1761314613521,4.99271773,191.79,191.64,4.82319943]
[1761314613716,4.99271773,191.79,191.63,49.54319943]
[1761314614019,4.99271773,191.79,191.63,44.72]
[1761314614213,4.99271773,191.79,191.63,49.54319943]
[1761314614815,4.99271773,191.79,191.63,44.72]
[1761314615020,4.6937,191.73,191.64,4.6956]
[1761314615217,4.6937,191.73,191.63,44.72]
[1761314616124,4.6939,191.72,191.64,4.6956]
[1761314617018,4.99271773,191.79,191.65,4.6953]
[1761314618323,4.6939,191.72,191.65,4.6953]
[1761314618821,4.6939,191.72,191.63,49.4159]
[1761314619425,4.6942,191.71,191.63,49.4159]
[1761314619723,4.99271773,191.79,191.63,49.4159]
[1761314619923,4.99271773,191.79,191.64,4.6956]
[1761314620317,4.99271773,191.79,191.66,4.6952]
[1761314620721,4.99271773,191.83,191.66,4.82319943]
[1761314620921,4.99271773,191.83,191.67,4.82319943]
[1761314621120,4.99271773,191.87,191.7,4.82319943]
[1761314621426,4.99271773,191.87,191.69,4.82319943]
[1761314621620,4.99271773,191.87,191.7,25.54]
[1761314621926,4.99271773,191.87,191.71,4.6939]
[1761314622221,4.6922,191.79,191.71,4.6939]
[1761314624219,4.6922,191.79,191.7,25.54]
[1761314624422,4.99271773,191.87,191.7,25.54]
[1761314624721,4.99271773,191.83,191.66,49.54319943]
[1761314624919,4.99271773,191.83,191.67,4.6949]
[1761314625231,4.99271773,191.83,191.66,49.54319943]
[1761314625618,4.99271773,191.83,191.63,11.42365031]
[1761314625619,4.99271773,191.83,191.64,4.82319943]
[1761314625926,4.99271773,191.83,191.64,33.28319943]
[1761314626131,4.6932,191.75,191.66,4.6951]
[1761314626531,4.6937,191.73,191.66,4.6951]
[1761314627929,4.6939,191.72,191.65,4.82319943]
[1761314628130,8.20859254,191.83,191.64,9.51889943]
[1761314628328,8.20859254,191.79,191.64,4.82319943]
[1761314628528,4.6947,191.69,191.62,9.51939943]
[1761314628824,8.20859254,191.79,191.6,49.52319943]
[1761314629029,4.6947,191.69,191.6,54.21969943]
[1761314629229,9.3852,191.77,191.6,54.21969943]
[1761314629426,9.3852,191.77,191.6,49.52319943]
[1761314629628,9.3852,191.77,191.61,4.6963]
[1761314629821,93.30890924,191.83,191.6,49.52319943]
[1761314629822,9.3829,191.82,191.6,49.52319943]
[1761314630027,4.6939,191.72,191.62,4.82319943]
[1761314630225,52.90859254,191.82,191.63,4.82319943]
[1761314630425,8.60494646,191.81,191.63,4.82319943]
[1761314630626,8.20859254,191.82,191.64,4.82319943]
[1761314631032,4.6933,191.74,191.65,9.51859943]
[1761314631230,4.6933,191.74,191.65,66.6954]
[1761314631431,8.60999998,191.81,191.65,4.6954]
[1761314631728,4.15729384,191.81,191.65,9.51859943]
[1761314632134,17.99296899,191.81,191.64,4.82319943]
[1761314632433,4.6939,191.72,191.64,4.82319943]
[1761314632628,4.6939,191.72,191.64,9.51879943]
[1761314633426,4.6939,191.72,191.65,4.82319943]
[1761314633631,4.6942,191.71,191.65,4.82319943]
[1761314633831,8.20859254,191.82,191.64,4.82319943]
[1761314634032,8.20859254,191.78,191.62,4.82319943]
[1761314634235,8.61613371,191.77,191.61,4.82319943]
[1761314634836,4.6951,191.67,191.59,4.6968]
[1761314635231,4.6956,191.65,191.58,22.08]
[1761314635534,85.90640178,191.78,191.53,9.64639887]
[1761314635535,8.20859254,191.74,191.53,6.43093258]
[1761314635834,8.61270641,191.73,191.54,49.398]
[1761314636033,4.6961,191.63,191.54,49.398]
[1761314636235,4.6961,191.63,191.55,4.6978]
[1761314636435,4.6957,191.65,191.55,4.6978]
[1761314636632,4.6957,191.65,191.54,51.13093258]
[1761314637034,4.6957,191.65,191.56,4.6975]
[1761314637337,4.6959,191.64,191.56,4.6975]
[1761314637536,4.6959,191.64,191.54,51.13093258]
[1761314637731,9.3871,191.74,191.55,6.43093258]
[1761314638140,9.3871,191.74,191.56,62.0]
[1761314638730,4.695,191.68,191.6,4.6966]
[1761314639031,4.695,191.68,191.54,44.7]
[1761314639032,9.3842,191.79,191.57,14.63952512]
[1761314639230,35.06859254,191.8,191.57,14.63952512]
[1761314639431,9.3847,191.78,191.57,8.20859254]
[1761314639629,9.3847,191.78,191.57,14.63952512]
[1761314639830,4.6947,191.69,191.61,4.6963]
[1761314640337,4.6942,191.71,191.63,4.6958]
[1761314640638,4.6942,191.71,191.57,14.63952512]
[1761314640639,9.3847,191.78,191.59,6.43093258]
[1761314640939,9.3847,191.78,191.6,44.7]
[1761314641138,4.6944,191.7,191.61,4.6963]
[1761314641340,9.3847,191.78,191.6,44.7]
[1761314641540,4.6942,191.71,191.62,4.6961]
[1761314642039,9.3853,191.77,191.6,44.7]
[1761314643036,4.6936,191.73,191.6,44.7]
[1761314643338,8.328182,191.81,191.65,4.6953]
[1761314643933,8.328182,191.81,191.63,4.696]
[1761314644133,9.3837,191.8,191.63,4.696]
[1761314644334,17.59229254,191.8,191.63,4.696]
[1761314644928,17.59229254,191.8,191.61,66.6964]
[1761314645135,17.59229254,191.8,191.61,62.0]
[1761314645634,4.37850426,191.79,191.6,44.7]
[1761314645830,8.32534186,191.79,191.6,44.7]
[1761314646029,13.0308511,191.79,191.6,44.7]
[1761314646230,8.32534186,191.78,191.56,52.88859254]
[1761314646435,8.20859254,191.76,191.59,4.6968]
[1761314647043,4.37741496,191.75,191.57,4.6974]
[1761314647245,8.32376788,191.75,191.57,4.6974]
[1761314647538,4.37741496,191.75,191.57,4.6974]
[1761314647739,8.32326783,191.75,191.57,4.6974]
[1761314647945,4.6957,191.65,191.57,4.6974]
[1761314648130,4.6957,191.65,191.54,20.24]
[1761314648431,54.0668,191.74,191.54,20.24]
[1761314648432,44.68,191.74,191.54,20.24]
[1761314648628,44.68,191.74,191.54,82.24]
[1761314648929,4.6964,191.62,191.52,44.68]
[1761314649541,23.86859254,191.72,191.52,4.6986]
[1761314649742,8.32085063,191.71,191.52,4.6986]
[1761314650140,4.697,191.59,191.5,4.6991]
[1761314651149,4.6974,191.58,191.48,49.3796]
[1761314651346,4.6974,191.58,191.48,44.68]
[1761314651552,4.6968,191.6,191.48,44.68]
[1761314651748,10.48,191.66,191.5,4.699]
[1761314652348,4.6977,191.57,191.5,4.699]
[1761314652944,4.6977,191.57,191.48,44.68]
[1761314653959,4.6977,191.57,191.49,4.6992]
[1761314654555,44.68,191.66,191.48,44.68]
[1761314654556,8.20859254,191.64,191.48,44.68]
[1761314654853,8.20859254,191.64,191.43,44.68]
[1761314655059,4.70550924,191.68,191.43,44.68]
[1761314655261,4.6979,191.56,191.48,4.6995]
[1761314655663,9.3902,191.67,191.43,60.22810572]
[1761314655864,53.6702,191.67,191.51,4.6987]
[1761314656263,53.6702,191.67,191.44,6.43093258]
[1761314656468,53.6702,191.67,191.43,60.22810572]
[1761314656660,9.3902,191.67,191.43,60.22810572]
[1761314656857,8.20859254,191.68,191.45,9.4008]
[1761314657070,8.20859254,191.68,191.48,8.20859254]
[1761314657362,3.69991843,191.67,191.48,8.20859254]
[1761314657869,4.6971,191.59,191.49,62.0]
[1761314658168,3.69991843,191.67,191.49,62.0]
[1761314658354,3.69991843,191.67,191.49,4.6993]
[1761314658664,8.06764415,191.67,191.44,8.20859254]
[1761314658866,8.20859254,191.64,191.45,4.7003]
[1761314659169,8.20859254,191.6,191.45,4.7003]
[1761314660067,8.20859254,191.6,191.38,84.92320702]
[1761314660068,4.698,191.55,191.4,44.68]
[1761314660274,8.20859254,191.6,191.4,44.68]
[1761314660571,8.20859254,191.6,191.45,4.7002]
[1761314660765,12.91410178,191.66,191.42,8.20859254]
[1761314660966,31.99575045,191.65,191.49,4.6992]
[1761314661174,4.6982,191.54,191.4,44.68]
[1761314661372,8.20859254,191.62,191.41,62.0]
[1761314661566,3.69358284,191.61,191.44,4.7006]
[1761314661767,4.6984,191.53,191.44,4.7006]
[1761314662162,3.69358284,191.61,191.44,4.7006]
[1761314662367,4.6989,191.52,191.42,4.7011]
[1761314662569,4.6989,191.52,191.4,44.68]
[1761314663276,4.6984,191.54,191.4,44.68]
[1761314663478,20.02,191.63,191.4,52.88859254]
[1761314663676,20.02,191.63,191.49,4.6993]
[1761314663877,52.88859254,191.65,191.44,8.20859254]
[1761314664182,52.88859254,191.65,191.4,44.68]
[1761314664369,3.69086615,191.64,191.4,44.68]
[1761314665478,9.3921,191.63,191.4,44.68]
[1761314665771,9.3921,191.63,191.41,62.0]
[1761314666077,54.0721,191.63,191.43,8.20859254]
[1761314666274,4.6975,191.57,191.48,4.6995]
[1761314666478,27.74859254,191.65,191.47,44.68]
[1761314667272,3.69165052,191.64,191.47,52.88859254]
[1761314667574,4.70550924,191.72,191.47,52.88859254]
[1761314667773,31.17293478,191.72,191.47,52.88859254]
[1761314667977,3.69253675,191.71,191.55,4.6978]
[1761314668177,3.69253675,191.71,191.51,8.20859254]
[1761314668374,4.6955,191.65,191.56,4.6975]
[1761314668878,4.6955,191.65,191.43,73.1246]
[1761314668879,3.69253675,191.69,191.49,8.20859254]
[1761314669073,4.6964,191.62,191.52,43.08]
[1761314669279,3.69253675,191.68,191.52,105.08]
[1761314669578,4.51088656,191.71,191.52,105.08]
[1761314669772,8.20342331,191.72,191.52,105.08]
[1761314670173,4.6953,191.66,191.57,4.6974]
[1761314670367,3.69253675,191.72,191.53,8.20859254]
[1761314670881,4.6948,191.68,191.53,8.20859254]
[1761314671179,3.69253675,191.73,191.53,8.20859254]
[1761314671378,4.6946,191.69,191.53,8.20859254]
[1761314672472,8.20859254,191.73,191.52,62.0]
[1761314672872,8.20859254,191.73,191.57,4.6973]
[1761314672873,4.6951,191.67,191.57,4.6973]
[1761314673179,4.6951,191.67,191.53,44.68]
[1761314673677,4.6951,191.67,191.59,4.6968]
[1761314673879,4.6951,191.67,191.53,44.68]
[1761314674282,4.6951,191.67,191.6,4.6965]
[1761314674783,4.6946,191.69,191.61,44.66]
[1761314675481,4.6941,191.71,191.62,4.696]
[1761314675680,22.29740178,191.81,191.61,44.66]
[1761314675873,4.6935,191.74,191.61,44.66]
[1761314676183,3.70025004,191.79,191.61,44.66]
[1761314676477,17.59189254,191.81,191.62,44.66]
[1761314676478,4.6942,191.71,191.62,44.66]
[1761314676684,4.6942,191.71,191.61,44.66]
[1761314677075,4.6942,191.71,191.62,4.696]
[1761314677274,4.6942,191.71,191.61,44.66]
[1761314677782,3.70074899,191.79,191.61,44.66]
[1761314678087,8.21803783,191.8,191.61,44.66]
[1761314678873,4.694,191.72,191.63,4.696]
[1761314679181,4.694,191.72,191.63,44.38]
[1761314679680,4.6945,191.7,191.63,44.38]
[1761314680080,4.6947,191.69,191.62,4.6962]
[1761314680280,8.20859254,191.67,191.47,9.64639887]
[1761314680480,8.20859254,191.63,191.42,9.64639887]
[1761314680786,4.6987,191.53,191.39,16.03524781]
[1761314680986,8.20859254,191.59,191.38,77.6234561]
[1761314681285,3.76625617,191.58,191.38,93.23795196]
[1761314681483,15.66,191.62,191.38,76.71461448]
[1761314681678,8.20859254,191.6,191.38,76.71461448]
[1761314681886,4.6986,191.53,191.38,76.71461448]
[1761314682083,8.20859254,191.6,191.38,77.62330184]
[1761314682283,3.76553436,191.59,191.38,85.83189438]
[1761314682484,3.76553436,191.59,191.4,4.7015]
[1761314682685,3.76553436,191.61,191.4,4.7015]
[1761314682885,8.20859254,191.58,191.38,76.71461448]
[1761314683194,3.76414886,191.57,191.38,76.71461448]
[1761314683787,8.20859254,191.54,191.38,76.71461448]
[1761314683989,8.20859254,191.54,191.37,44.64]
[1761314684580,8.20859254,191.5,191.37,44.64]
[1761314684987,4.6998,191.48,191.34,4.703]
[1761314685184,8.20859254,191.46,191.27,12.16]
[1761314685584,4.702,191.39,191.27,16.8647]
[1761314685779,8.20859254,191.46,191.27,12.16]
[1761314685985,8.20859254,191.46,191.28,62.0]
[1761314686292,8.20859254,191.46,191.29,4.7042]
[1761314686293,4.7017,191.4,191.29,4.7042]
[1761314686491,4.7017,191.4,191.27,12.16]
[1761314686685,5.00730788,191.4,191.26,44.66]
[1761314686888,5.00730788,191.4,191.26,49.3649]
[1761314687086,5.00730788,191.4,191.26,44.66]
[1761314687283,5.00730788,191.42,191.26,44.66]
[1761314687488,4.4369395,191.41,191.26,44.66]
[1761314687690,4.4369395,191.4,191.26,44.66]
[1761314687891,4.4369395,191.39,191.3,5.00730788]
[1761314688087,4.70550924,191.47,191.3,5.00730788]
[1761314688396,4.42323083,191.46,191.34,5.00730788]
[1761314688690,4.42323083,191.45,191.35,44.66]
[1761314688894,4.70550924,191.5,191.35,44.66]
[1761314689090,4.42337503,191.49,191.35,44.66]
[1761314689292,4.42337503,191.48,191.36,62.0]
[1761314689493,4.42337503,191.47,191.36,62.0]
[1761314689789,4.42337503,191.46,191.39,4.7018]
[1761314689989,4.42337503,191.45,191.39,4.7018]
[1761314690190,4.70550924,191.5,191.39,4.7018]
[1761314690390,9.12948516,191.49,191.39,4.7018]
[1761314690592,4.42397592,191.48,191.35,49.66730788]
[1761314690797,4.42397592,191.47,191.39,5.00730788]
[1761314691098,4.42397592,191.46,191.39,5.00730788]
[1761314691397,4.42393481,191.45,191.39,5.00730788]
[1761314691597,4.70550924,191.49,191.39,4.7018]
[1761314691797,4.42373605,191.48,191.39,4.7018]
[1761314692094,14.50044278,191.55,191.35,44.66]
[1761314692095,4.70550924,191.54,191.44,4.7003]
[1761314692288,4.42505574,191.53,191.44,4.7003]
[1761314692489,4.42505574,191.52,191.44,4.7003]
[1761314692689,4.42505574,191.51,191.44,4.7003]
[1761314692885,4.42505574,191.5,191.45,62.0]
[1761314693091,4.70550924,191.54,191.46,4.7]
[1761314693399,4.42522507,191.53,191.45,62.0]
[1761314693697,4.70550924,191.59,191.48,5.00730788]
[1761314693903,4.426959,191.58,191.48,5.00730788]
[1761314694090,4.426959,191.57,191.52,4.6985]
[1761314694298,4.426959,191.56,191.52,4.6985]
[1761314694497,4.70550924,191.6,191.52,4.6985]
[1761314694694,4.42726414,191.59,191.52,4.6985]
[1761314694890,5.00730788,191.67,191.52,4.6985]
[1761314694891,4.42726414,191.58,191.52,5.00730788]
[1761314695188,9.4931349,191.66,191.51,44.66]
[1761314695189,4.70550924,191.67,191.56,5.00730788]
[1761314695394,4.41099129,191.66,191.58,5.00730788]
[1761314695596,4.41099129,191.65,191.59,44.66]
[1761314695891,4.41099129,191.64,191.59,44.66]
[1761314696203,4.70550924,191.69,191.59,44.66]
[1761314696404,4.40973624,191.68,191.6,44.82]
[1761314696595,4.40973624,191.67,191.6,44.82]
[1761314696795,4.40973624,191.66,191.51,5.00730788]
[1761314697093,4.70550924,191.7,191.56,5.00730788]
[1761314697094,4.40986536,191.65,191.56,5.00730788]
[1761314697293,4.40986536,191.64,191.57,14.2]
[1761314697495,4.70550924,191.69,191.58,5.00730788]
[1761314697701,9.11465967,191.68,191.58,5.00730788]
[1761314697898,9.11465967,191.67,191.58,5.00730788]
[1761314698112,4.40915043,191.66,191.58,93.40730788]
[1761314698296,4.40915043,191.65,191.58,26.4]
[1761314698496,4.40915043,191.65,191.57,4.6971]
[1761314698497,4.40915043,191.64,191.57,44.8]
[1761314698694,4.40915043,191.63,191.57,44.8]
[1761314698894,4.40915043,191.62,191.53,5.00730788]
[1761314699099,4.40915043,191.61,191.55,4.6978]
[1761314699301,4.70550924,191.66,191.55,4.6978]
[1761314699600,4.40774336,191.65,191.55,4.6978]
[1761314699801,4.40774336,191.64,191.57,4.6973]
[1761314700008,4.40774336,191.63,191.57,4.6973]
[1761314700207,4.40774336,191.62,191.54,44.8]
[1761314700402,4.70550924,191.68,191.57,5.00730788]
[1761314700700,9.11316857,191.67,191.58,43.02]
[1761314700905,9.11316857,191.66,191.58,43.02]
[1761314701209,4.40765933,191.65,191.55,4.6977]
[1761314701412,4.40765933,191.64,191.56,44.76]
[1761314701599,4.40765933,191.63,191.56,44.76]
[1761314701908,4.40765933,191.62,191.56,44.76]
[1761314702111,4.70550924,191.67,191.56,44.76]
[1761314702410,4.40863259,191.66,191.58,4.697]
[1761314702603,4.40863259,191.65,191.56,49.76730788]
[1761314702804,4.40863259,191.64,191.56,49.76730788]
[1761314703001,4.70550924,191.69,191.6,5.00730788]
[1761314703197,4.39784384,191.68,191.59,5.00730788]
[1761314703401,4.39784384,191.67,191.57,5.00730788]
[1761314703605,4.70550924,191.72,191.59,5.00730788]
[1761314703812,4.39792884,191.71,191.59,5.00730788]
[1761314704110,4.39792884,191.7,191.63,4.6958]
[1761314704402,4.39792884,191.69,191.63,4.6958]
[1761314704608,4.39792884,191.68,191.61,44.74]
[1761314704802,4.39792884,191.67,191.61,44.74]
[1761314705004,4.39592688,191.66,191.61,44.74]
[1761314705307,4.70550924,191.71,191.6,4.6963]
[1761314705508,4.39557487,191.7,191.61,18.62]
[1761314705709,4.39557487,191.69,191.62,4.696]
[1761314705909,4.39557487,191.68,191.62,4.696]
[1761314706103,4.70550924,191.72,191.61,18.62]
[1761314706304,4.39613903,191.71,191.63,4.6956]
[1761314706506,4.39613903,191.7,191.61,27.76]
[1761314706706,4.39613903,191.69,191.61,27.76]
[1761314706898,4.39613903,191.68,191.61,27.76]
[1761314707102,4.39613903,191.67,191.6,44.7]
[1761314707298,4.39613903,191.66,191.6,44.7]
[1761314707503,4.6942,191.7,191.6,49.3966]
[1761314707707,4.39496182,191.69,191.6,49.3966]
[1761314707903,4.39496182,191.68,191.57,5.00730788]
[1761314708215,4.39496182,191.67,191.57,49.68730788]
[1761314708416,4.39496182,191.66,191.57,49.68730788]
[1761314708617,9.39970924,191.7,191.57,49.68730788]
[1761314708920,4.3945288,191.69,191.51,5.00730788]
[1761314709110,4.3945288,191.68,191.56,5.00730788]
[1761314709311,4.3945288,191.67,191.56,5.00730788]
[1761314709610,4.70550924,191.71,191.6,5.00730788]
[1761314709914,4.39607437,191.7,191.61,44.78]
[1761314710116,4.70550924,191.76,191.62,49.78730788]
[1761314710316,4.39695719,191.75,191.63,44.78]
[1761314710612,6.31010254,191.78,191.63,44.78]
[1761314710613,4.39695719,191.74,191.63,44.78]
[1761314710813,4.39476005,191.73,191.63,44.78]
[1761314711015,9.39840924,191.76,191.66,4.6951]
[1761314711318,4.39490836,191.75,191.66,4.6951]
[1761314711620,4.39490836,191.75,191.63,44.78]
[1761314711621,9.08830836,191.74,191.64,4.6955]
[1761314711807,4.39490836,191.73,191.64,49.4555]
[1761314712010,4.39490836,191.72,191.64,49.4555]
[1761314712311,4.39490836,191.71,191.64,49.4555]
[1761314712512,4.39490836,191.7,191.64,49.4555]
[1761314712714,4.6936,191.73,191.64,44.76]
[1761314712914,4.39303924,191.72,191.64,44.76]
[1761314713117,4.39303924,191.71,191.64,44.76]
[1761314713315,4.6936,191.73,191.65,4.6952]
[1761314713518,4.39239123,191.72,191.65,4.6952]
[1761314713721,4.39239123,191.71,191.65,4.6952]
[1761314713915,4.39239123,191.7,191.65,4.6952]
[1761314714111,9.39840924,191.75,191.66,4.6949]
[1761314714312,4.39205765,191.74,191.66,4.6949]
[1761314714522,4.39205765,191.73,191.63,49.80730788]
[1761314714821,4.39205765,191.72,191.63,49.80730788]
[1761314715016,4.70550924,191.77,191.63,49.80730788]
[1761314715316,4.39164991,191.76,191.67,5.00730788]
[1761314715516,9.39740924,191.8,191.72,4.6935]
[1761314715816,4.37570844,191.79,191.72,4.6935]
[1761314716021,4.37570844,191.78,191.67,5.00730788]
[1761314716315,4.37570844,191.77,191.67,5.00730788]
[1761314716622,4.70550924,191.83,191.67,5.00730788]
[1761314716808,4.37471214,191.82,191.67,5.00730788]
[1761314717116,4.37471214,191.81,191.71,5.00730788]
[1761314717310,4.70550924,191.86,191.77,4.6923]
[1761314717506,4.22847892,191.85,191.77,4.6923]
[1761314717714,4.70550924,191.88,191.77,4.6923]
[1761314717715,4.22847892,191.84,191.77,4.6923]
[1761314718015,4.94213113,191.87,191.76,44.9]
[1761314718216,4.70550924,191.91,191.76,44.9]
[1761314718425,4.22553997,191.9,191.8,4.6916]
[1761314718617,4.22553997,191.89,191.77,62.0]
[1761314718822,4.22553997,191.88,191.77,44.88]
[1761314719115,4.6903,191.86,191.77,44.88]
[1761314719321,4.22553997,191.85,191.77,44.88]
[1761314719513,4.22553997,191.84,191.77,44.88]
[1761314719716,4.9332921,191.88,191.77,44.88]
[1761314720023,4.22097222,191.87,191.77,44.88]
[1761314720227,4.22097222,191.86,191.77,44.88]
[1761314720411,8.91167222,191.85,191.77,44.88]
[1761314720615,4.9332921,191.88,191.75,44.88]
[1761314720616,4.22097222,191.84,191.75,44.88]
[1761314720820,4.22097222,191.83,191.75,44.88]
[1761314721117,4.92960149,191.87,191.75,44.88]
[1761314721319,4.70550924,191.88,191.75,44.88]
[1761314721320,9.14723963,191.86,191.75,44.88]
[1761314721515,4.21763814,191.85,191.75,44.88]
[1761314721719,4.21763814,191.84,191.75,44.88]
[1761314721914,4.21763814,191.83,191.74,44.84]
[1761314722123,4.21763814,191.83,191.63,5.00730788]
[1761314722124,4.21650519,191.82,191.63,5.00730788]
[1761314722316,4.6917,191.8,191.64,4.24]
[1761314722514,4.21650519,191.79,191.64,4.24]
[1761314722711,4.92674203,191.82,191.64,4.24]
[1761314722915,4.2150777,191.81,191.64,4.24]
[1761314723122,4.2150777,191.8,191.64,4.24]
[1761314723325,4.2150777,191.79,191.64,4.24]
[1761314723519,4.92674203,191.82,191.64,4.24]
[1761314723725,4.21411617,191.81,191.64,4.24]
[1761314723927,4.21411617,191.8,191.64,4.24]
[1761314724129,4.21411617,191.79,191.64,4.24]
[1761314724318,4.92674203,191.82,191.64,4.24]
[1761314724628,4.21349326,191.81,191.64,4.24]
[1761314724826,4.6921,191.79,191.7,4.694]
[1761314725015,4.70550924,191.87,191.69,5.00730788]